{"text_format":"2","workbook":"xlsx","n_sheets":4,"sheets":["Program Issues","Process Gaps, Issues","Issues Graph Aging","Definitions"],"not_rendered":{"charts":8,"images":0,"macros":0,"external_links":1,"defined_names":9,"comments":0,"pivot_tables":0},"unopened":[],"bounds":{"document_bytes":16777216,"sheet_cells":100000,"run_cost":"one","rows_first":2000,"rows_last":500,"rows_between":2000,"halvings":0,"cell_chars":16384,"cell_head_chars":4096},"cells_cut":0,"cells_raw":0,"read":"whole","date_system":"1900"}

{"sheet":"Program Issues","index":0,"n_rows":37,"n_cols":15,"rows_kept":37,"cut":false,"hidden":false,"merged":[[0,8,0,9]]}
[{"$nulls":7},"Issue Log:",{"$f":"TODAY()","v":"2022-02-09"},null,null,null,{"$f":"I1","v":"2022-02-09"}]
[]
[{"$nulls":6},"Issue Count",{"$f":"COUNTA(E11:E166)","v":27},"Priority"]
[{"$nulls":6},"Open",{"$f":"H3-H5","v":10},"1900-01-01","Major Incident"]
[{"$nulls":6},"Closed",{"$f":"COUNTIF(L11:L166,\"Closed\")","v":17},"1900-01-02","Critical"]
[{"$nulls":8},"1900-01-03","High"]
[{"$nulls":8},"1900-01-04","Medium"]
[{"$nulls":8},"1900-01-05","Low"]
[]
[null,"Issue #","Location","Owner","Issue Summary","Issue Description ","Date Issue Raised","Reponsible","Influence Degree","Urgency Degree","Priority","Status","Actions/Solution/Answers ** Current Status**","Date Due","Days to Over Due"]
[null,2,"SJL","Logistics","Picklist执行状态跟踪","如何跟踪备货状态","2022-01-13","曾宇",null,"Medium","1900-01-04","Closed","系统根据LAB发货计划创建预先发货单，创建AIM任务，执行下架，任务执行情况可以通过系统展示","2022-01-28"]
[null,3,"SJL","Logistics","下架非整托盘如何处理","下架非整托盘如何处理","2022-01-14","曾宇",null,"Medium","1900-01-04","Closed","整托盘下架，零托手动执行下架","2022-01-28"]
[null,4,"SJL","Logistics","ASN取消 内部标签被覆盖","ASN取消，根据VDA标签补打内部标签，匹配原始reference号码","2022-01-15","曾宇",null,"Medium","1900-01-04","Closed",null,"2022-01-28"]
[null,5,"SJL","Logistics","QAD累计发货量清零问题","累计发货量清零的问题 7.5.18 BBA STD需要考虑在途，所以累计发货不能清零","2022-01-16","曾宇",null,"Medium","1900-01-04","Closed","针对LAB累计收货与SJL累计发货进行对比的需求，在LAB导入时对比QAD实际销售发运数量累计——库存转移至寄售库；\n详细逻辑见系统方案设计","2022-01-28"]
[null,6,"SJL","Logistics","LAB backlog monitoring","BBA CheckList问题，对于LAB中过去时间的需求，BBA要求能识别并且正常发货；","2022-01-17","曾宇",null,"High","1900-01-03","Closed","STD在解析LAB时针对过去时间的需求保留，并且安排当天进行发运计划；","2022-01-28"]
[null,7,"SJL","Logistics","LAB导入要求检查客户零件与SLOC","Lab loading error check: part,location","2022-01-18","曾宇",null,"Medium","1900-01-04","Closed","STD在导入LAB后，提供检查校验报表供用户查看零件、库位缺失报错，且在导入当时系统后台在发现问题后将邮件通知详细报错给相关业务负责人 ","2022-01-28"]
[null,8,"SJL","Logistics","PRE-DN与ASN的关系如何理解","Pre-DN ASN koli号可以是假的，或者说真实的ASN可以和Pre-DN不一致","2022-01-19","李嘉",null,"Medium","1900-01-04","Closed","Pre-DN ASN koli号可以是假的，或者说真实的ASN可以和Pre-DN不一致","2022-01-28"]
[null,9,"SJL","Logistics","ASN预计到达时间在确认之前可以更新","ASN预计到达时间在确认之前可以更新","2022-01-20","曾宇",null,"Medium","1900-01-04","Closed","STD系统现有功能\n","2022-01-28"]
[null,10,"SJL","Logistics","ASN不是在创建生成后就EDI发送给BBA","ASN创建，ASN发送是两个功能，ASN取消，修改完善，重新发送，发送前做防错——重复","2022-01-21","曾宇",null,"Medium","1900-01-04","Closed","STD系统现有功能\nSJL要求先打印ASN，发货校验完成再点击发送ASN","2022-01-28"]
[null,11,"SJL","Logistics","ASN二次发送","ASN发送——重新发送  BBA没收到 手动触发","2022-01-22","曾宇",null,"Medium","1900-01-04","Closed","STD系统中实现","2022-01-28"]
[null,12,"SJL","Logistics","LAB状态，ASN状态控制","LAB状态，ASN状态控制","2022-01-23","刘洪辉",null,"Medium","1900-01-04","Closed","STD系统现有功能\n","2022-01-28"]
[null,13,"SJL","Logistics","EDI链路问题，临时启用WEB-EDI进行发货","Supplier NET生成ASN，VDA标签，下载为文件导入到STD","2022-01-24","刘洪辉",null,"Medium","1900-01-04","Open","需要提供CSV格式，分析后STD开发相关功能","2022-01-30"]
[null,14,"SJL","Logistics","QAD累计发货量清零问题","QAD累计发运数量的管理，是否可以从STD同步更新","2022-01-25","曾宇",null,"Medium","1900-01-04","Closed","STD提供累计发运报告，QAD根据该报告手动维护确保同步","2022-01-30"]
[null,15,"SJL","Logistics","EDI链路问题，临时启用WEB-EDI进行发货","Supplier NET上下载LAB，CSV格式，是否可以导入STD系统","2022-01-26","刘洪辉",null,"Medium","1900-01-04","Open","需要提供CSV格式，分析后STD开发相关功能","2022-01-30"]
[null,16,"SJL","Logistics","QAD LAB导入的报错处理","QAD LAB导入的报错处理","2022-01-27","曾宇",null,"Medium","1900-01-04","Closed","QAD E-Commerce模块日志反映LAB导入问题","2022-01-28"]
[null,17,"SJL","Logistics","成品下架任务如何驱动","成品下架任务如何驱动","2022-01-28","曾宇",null,"Medium","1900-01-04","Closed","使用QAD客户需求计划驱动预先货运单，在AIM中创建成品下架任务，驱动下架移库","2022-01-28"]
[null,18,"SJL","Logistics","STD系统是否也应该接LEAR GXS SNF LAB文件","STD系统是否也应该接LEAR GXS SNF LAB文件","2022-01-29","李嘉",null,"High","1900-01-03","Closed","由于BBA有LAB接入5分钟时效性要求，而李尔GXS SNF转换无法满足时效要求，所以要求STD直连AXAWAY获取原始BBA LAB进行解析导入","2022-01-28"]
[null,null,"SJL","Logistics","业务流程图更新","第二次WH会议后讨论业务流程更新，主要涉及：\n1，客户需求管理流程\n2，客户发货流程——车辆原因导致VDA标签更新没有\n3，客户发货取消流程——加判断确定走流程\n5，生产流程——防错","2022-01-28","曾宇",null,"Medium","1900-01-04","Open"]
[null,null,"SJL","Logistics","向BBA展示系统","3月21日向BBA展示系统，并说明系统逻辑","2022-01-28","曾宇",null,"Medium","1900-01-04","Open"]
[null,null,"SJL","Logistics","VDA标签照核01,02扫描必须要有时间间隔","左右VDA标签扫码要有时间间隔，做成可配置调节，精确到秒即可","2022-01-28","曾宇",null,"Medium","1900-01-04","Open","左右标签扫描顺序是否可以打乱，做成可配置的，既可以强制，也可以不做要求；\n时间间隔也可配置；"]
[null,null,"SJL","Logistics","VDA标签必须有状态管理","建议正常业务补打标签和需求更新补打标签进行状态区分","2022-01-28","曾宇",null,"Medium","1900-01-04","Open","VDA标签状态：新建、内部照核匹配内部标签、装车照核、删除、发货完成、打印状态——未打印、一次打印、再次打印"]
[null,null,"SJL","Logistics","VDA标签删除处理逻辑","要求解绑VDA标签与内部标签，如何补打原内部标签，要求进行替换校验","2022-01-28","李嘉、曾宇",null,"Medium","1900-01-04","Closed","STD提供枪端程序允许扫描VDA标签查看对应原内部标签参考号，在QAD系统通过内部标签参考号补打标签，STD提供枪端程序扫描内部标签、VDA标签做照核，只有匹配关系一致才允许通过，实物贴内部标签即可，STD系统将原匹配关系作废；"]
[null,null,"SJL","Logistics","成品下架移库目前没有形成闭环，STD和QAD没有衔接","如何应对LAB实时变化导致的STD发货需求与QAD客户需求不一致的问题","2022-01-28","李嘉、曾宇",null,"Medium","1900-01-04","Closed","STD系统中在PRE-DN创建完成后，允许用户点击生成下架任务接口文件，汇总零件数量，该文件导入QAD创建7.9.2预先发货单，驱动AIM创建下架任务；"]
[null,null,"SJL","Logistics","ASN前三位固定代码需要找BBA确认",null,"2022-01-28","王明松",null,"Medium","1900-01-04","Open"]
[{"$nulls":4},"ASN确认发送与LAB校验做成警告，允许用户选择暂停发送，或者忽略报错；","暂停发运、忽略错误"]
[{"$nulls":4},"SUPPLIERNET发货如何补录关联",{"$nulls":7},"1，SpplierNet平台下载LAB，导入STD系统；\n2，STD正常创建PRE-DN，ASN，VDA标签，校验发货；\n3，SupplierNET上创建与STD系统ASN号码一致的BBA ASN，打印VDA标签与ASN；\n4，STD提供BBA VDA标签与STD VDA标签照核，创建匹配关系，防错——STD ASN更新状态，防止重新发送ASN；\n5，SupplierNET上做ASN发送确认；"]
[{"$nulls":4},"StorageLOC是多个，是否需要按库位管理ASN和PRE-DN，避免用户混淆"]

{"sheet":"Process Gaps, Issues","index":1,"n_rows":78,"n_cols":15,"rows_kept":78,"cut":false,"hidden":true,"merged":[[0,9,0,10]]}
[null,"Pre-transition - AE Japan -  Process Action/Decisions Issue Log ",{"$nulls":6},"Issue Log:",{"$f":"TODAY()","v":"2022-02-09"},null,{"$f":"J1","v":"2022-02-09"}]
[]
[{"$nulls":4},"Type",{"$nulls":4},"Priority"]
[{"$nulls":4},"Gap = Potential difference with the baseline model",null,null,"Issue Count",{"$f":"COUNTA(F9:F78)","v":"00:00:00"},"1900-01-01","Critical:  Preventing progress"]
[{"$nulls":4},"Issue =  Requirement to make a process work effectively",null,null,"Open",{"$f":"I4-I6","v":"00:00:00"},"1900-01-02","Important, timely attention required"]
[{"$nulls":7},"Closed",{"$f":"COUNTIF(K9:K113,\"Closed\")","v":"00:00:00"},"1900-01-03","Not critical/important for current progress to continue"]
[]
[null,"Issue #","Location","Team","Type","Issue Summary","Issue Description ","Date Issue Raised","Reponsible","Priority","Status]","Actions/Solution/Answers ** Current Status**","Date Due","Days to Over Due","Column1"]
[null,"1900-01-01",{"$nulls":11},{"$f":"IF('Process Gaps, Issues'!$O9=\"Closed\",\"Closed\",'Process Gaps, Issues'!$M9-$J$1)","v":-44601}]
[null,"1900-01-02",{"$nulls":11},{"$f":"IF('Process Gaps, Issues'!$O10=\"Closed\",\"Closed\",'Process Gaps, Issues'!$M10-$J$1)","v":-44601}]
[null,"1900-01-03",{"$nulls":11},{"$f":"IF('Process Gaps, Issues'!$O11=\"Closed\",\"Closed\",'Process Gaps, Issues'!$M11-$J$1)","v":-44601}]
[null,"1900-01-04",{"$nulls":11},{"$f":"IF('Process Gaps, Issues'!$O12=\"Closed\",\"Closed\",'Process Gaps, Issues'!$M12-$J$1)","v":-44601}]
[null,"1900-01-05",{"$nulls":11},{"$f":"IF('Process Gaps, Issues'!$O13=\"Closed\",\"Closed\",'Process Gaps, Issues'!$M13-$J$1)","v":-44601}]
[null,"1900-01-06",{"$nulls":11},{"$f":"IF('Process Gaps, Issues'!$O14=\"Closed\",\"Closed\",'Process Gaps, Issues'!$M14-$J$1)","v":-44601}]
[null,"1900-01-07",{"$nulls":11},{"$f":"IF('Process Gaps, Issues'!$O15=\"Closed\",\"Closed\",'Process Gaps, Issues'!$M15-$J$1)","v":-44601}]
[null,"1900-01-08",{"$nulls":11},{"$f":"IF('Process Gaps, Issues'!$O16=\"Closed\",\"Closed\",'Process Gaps, Issues'!$M16-$J$1)","v":-44601}]
[null,"1900-01-09",{"$nulls":11},{"$f":"IF('Process Gaps, Issues'!$O17=\"Closed\",\"Closed\",'Process Gaps, Issues'!$M17-$J$1)","v":-44601}]
[null,"1900-01-10",{"$nulls":11},{"$f":"IF('Process Gaps, Issues'!$O18=\"Closed\",\"Closed\",'Process Gaps, Issues'!$M18-$J$1)","v":-44601}]
[null,"1900-01-11",{"$nulls":11},{"$f":"IF('Process Gaps, Issues'!$O19=\"Closed\",\"Closed\",'Process Gaps, Issues'!$M19-$J$1)","v":-44601}]
[null,"1900-01-12",{"$nulls":11},{"$f":"M20-$J$1","v":-44601}]
[null,"1900-01-13",{"$nulls":11},{"$f":"IF('Process Gaps, Issues'!$O21=\"Closed\",\"Closed\",'Process Gaps, Issues'!$M21-$J$1)","v":-44601}]
[null,"1900-01-14",{"$nulls":11},{"$f":"IF('Process Gaps, Issues'!$O22=\"Closed\",\"Closed\",'Process Gaps, Issues'!$M22-$J$1)","v":-44601}]
[null,"1900-01-15",{"$nulls":11},{"$f":"IF('Process Gaps, Issues'!$O23=\"Closed\",\"Closed\",'Process Gaps, Issues'!$M23-$J$1)","v":-44601}]
[null,"1900-01-16",{"$nulls":11},{"$f":"IF('Process Gaps, Issues'!$O24=\"Closed\",\"Closed\",'Process Gaps, Issues'!$M24-$J$1)","v":-44601}]
[null,"1900-01-17",{"$nulls":11},{"$f":"IF('Process Gaps, Issues'!$O25=\"Closed\",\"Closed\",'Process Gaps, Issues'!$M25-$J$1)","v":-44601}]
[null,"1900-01-18",{"$nulls":11},{"$f":"IF('Process Gaps, Issues'!$O26=\"Closed\",\"Closed\",'Process Gaps, Issues'!$M26-$J$1)","v":-44601}]
[null,"1900-01-19",{"$nulls":11},{"$f":"IF('Process Gaps, Issues'!$O27=\"Closed\",\"Closed\",'Process Gaps, Issues'!$M27-$J$1)","v":-44601}]
[null,"1900-01-20",{"$nulls":11},{"$f":"IF('Process Gaps, Issues'!$O28=\"Closed\",\"Closed\",'Process Gaps, Issues'!$M28-$J$1)","v":-44601}]
[null,"1900-01-21",{"$nulls":11},{"$f":"IF('Process Gaps, Issues'!$O29=\"Closed\",\"Closed\",'Process Gaps, Issues'!$M29-$J$1)","v":-44601}]
[null,"1900-01-22",{"$nulls":11},{"$f":"IF('Process Gaps, Issues'!$O30=\"Closed\",\"Closed\",'Process Gaps, Issues'!$M30-$J$1)","v":-44601}]
[null,"1900-01-23",{"$nulls":11},{"$f":"IF('Process Gaps, Issues'!$O31=\"Closed\",\"Closed\",'Process Gaps, Issues'!$M31-$J$1)","v":-44601}]
[null,"1900-01-24",{"$nulls":11},{"$f":"IF('Process Gaps, Issues'!$O32=\"Closed\",\"Closed\",'Process Gaps, Issues'!$M32-$J$1)","v":-44601}]
[null,"1900-01-25",{"$nulls":11},{"$f":"IF('Process Gaps, Issues'!$O33=\"Closed\",\"Closed\",'Process Gaps, Issues'!$M33-$J$1)","v":-44601}]
[null,"1900-01-26",{"$nulls":11},{"$f":"IF('Process Gaps, Issues'!$O34=\"Closed\",\"Closed\",'Process Gaps, Issues'!$M34-$J$1)","v":-44601}]
[null,"1900-01-27",{"$nulls":11},{"$f":"M35-$J$1","v":-44601}]
[null,"1900-01-28",{"$nulls":11},{"$f":"M36-$J$1","v":-44601}]
[null,"1900-01-29",{"$nulls":11},{"$f":"IF('Process Gaps, Issues'!$O37=\"Closed\",\"Closed\",'Process Gaps, Issues'!$M37-$J$1)","v":-44601}]
[null,"1900-01-30",{"$nulls":11},{"$f":"IF('Process Gaps, Issues'!$O38=\"Closed\",\"Closed\",'Process Gaps, Issues'!$M38-$J$1)","v":-44601}]
[null,"1900-01-31",{"$nulls":11},{"$f":"IF('Process Gaps, Issues'!$O39=\"Closed\",\"Closed\",'Process Gaps, Issues'!$M39-$J$1)","v":-44601}]
[null,"1900-02-01",{"$nulls":11},{"$f":"IF('Process Gaps, Issues'!$O40=\"Closed\",\"Closed\",'Process Gaps, Issues'!$M40-$J$1)","v":-44601}]
[null,"1900-02-02",{"$nulls":11},{"$f":"IF('Process Gaps, Issues'!$O41=\"Closed\",\"Closed\",'Process Gaps, Issues'!$M41-$J$1)","v":-44601}]
[null,"1900-02-03",{"$nulls":11},{"$f":"IF('Process Gaps, Issues'!$O42=\"Closed\",\"Closed\",'Process Gaps, Issues'!$M42-$J$1)","v":-44601}]
[null,"1900-02-04",{"$nulls":11},{"$f":"IF('Process Gaps, Issues'!$O43=\"Closed\",\"Closed\",'Process Gaps, Issues'!$M43-$J$1)","v":-44601}]
[null,"1900-02-05",{"$nulls":11},{"$f":"IF('Process Gaps, Issues'!$O44=\"Closed\",\"Closed\",'Process Gaps, Issues'!$M44-$J$1)","v":-44601}]
[null,"1900-02-06",{"$nulls":11},{"$f":"M45-$J$1","v":-44601}]
[null,"1900-02-07",{"$nulls":11},{"$f":"IF('Process Gaps, Issues'!$O46=\"Closed\",\"Closed\",'Process Gaps, Issues'!$M46-$J$1)","v":-44601}]
[null,"1900-02-08",{"$nulls":11},{"$f":"IF('Process Gaps, Issues'!$O47=\"Closed\",\"Closed\",'Process Gaps, Issues'!$M47-$J$1)","v":-44601}]
[null,"1900-02-09",{"$nulls":11},{"$f":"IF('Process Gaps, Issues'!$O48=\"Closed\",\"Closed\",'Process Gaps, Issues'!$M48-$J$1)","v":-44601}]
[null,"1900-02-10",{"$nulls":11},{"$f":"M49-$J$1","v":-44601}]
[null,"1900-02-11",{"$nulls":11},{"$f":"M50-$J$1","v":-44601}]
[null,"1900-02-12",{"$nulls":11},{"$f":"M51-$J$1","v":-44601}]
[null,"1900-02-13",{"$nulls":11},{"$f":"IF('Process Gaps, Issues'!$O52=\"Closed\",\"Closed\",'Process Gaps, Issues'!$M52-$J$1)","v":-44601}]
[null,"1900-02-14",{"$nulls":11},{"$f":"IF('Process Gaps, Issues'!$O53=\"Closed\",\"Closed\",'Process Gaps, Issues'!$M53-$J$1)","v":-44601}]
[null,"1900-02-15",{"$nulls":11},{"$f":"IF('Process Gaps, Issues'!$O54=\"Closed\",\"Closed\",'Process Gaps, Issues'!$M54-$J$1)","v":-44601}]
[null,"1900-02-16",{"$nulls":11},{"$f":"IF('Process Gaps, Issues'!$O55=\"Closed\",\"Closed\",'Process Gaps, Issues'!$M55-$J$1)","v":-44601}]
[null,"1900-02-17",{"$nulls":11},{"$f":"M56-$J$1","v":-44601}]
[null,"1900-02-18",{"$nulls":11},{"$f":"IF('Process Gaps, Issues'!$O57=\"Closed\",\"Closed\",'Process Gaps, Issues'!$M57-$J$1)","v":-44601}]
[null,"1900-02-19",{"$nulls":11},{"$f":"M58-$J$1","v":-44601}]
[null,"1900-02-20",{"$nulls":11},{"$f":"M59-$J$1","v":-44601}]
[null,"1900-02-21",{"$nulls":11},{"$f":"IF('Process Gaps, Issues'!$O60=\"Closed\",\"Closed\",'Process Gaps, Issues'!$M60-$J$1)","v":-44601}]
[null,"1900-02-22",{"$nulls":11},{"$f":"IF('Process Gaps, Issues'!$O61=\"Closed\",\"Closed\",'Process Gaps, Issues'!$M61-$J$1)","v":-44601}]
[null,"1900-02-23",{"$nulls":11},{"$f":"IF('Process Gaps, Issues'!$O62=\"Closed\",\"Closed\",'Process Gaps, Issues'!$M62-$J$1)","v":-44601}]
[null,"1900-02-24",{"$nulls":11},{"$f":"IF('Process Gaps, Issues'!$O63=\"Closed\",\"Closed\",'Process Gaps, Issues'!$M63-$J$1)","v":-44601}]
[null,"1900-02-25",{"$nulls":11},{"$f":"IF('Process Gaps, Issues'!$O64=\"Closed\",\"Closed\",'Process Gaps, Issues'!$M64-$J$1)","v":-44601}]
[null,"1900-02-26",{"$nulls":11},{"$f":"IF('Process Gaps, Issues'!$O65=\"Closed\",\"Closed\",'Process Gaps, Issues'!$M65-$J$1)","v":-44601}]
[null,"1900-02-27",{"$nulls":11},{"$f":"IF('Process Gaps, Issues'!$O66=\"Closed\",\"Closed\",'Process Gaps, Issues'!$M66-$J$1)","v":-44601}]
[null,"1900-02-28",{"$nulls":11},{"$f":"M67-$J$1","v":-44601}]
[null,60,{"$nulls":11},-44601]
[null,"1900-03-01",{"$nulls":11},-44601]
[null,"1900-03-02",{"$nulls":11},-44601]
[null,"1900-03-03",{"$nulls":11},-44601]
[null,"1900-03-04",{"$nulls":11},-44601]
[null,"1900-03-05",{"$nulls":11},-44601]
[null,"1900-03-06",{"$nulls":11},-44601]
[null,"1900-03-07",{"$nulls":11},-44601]
[null,"1900-03-08",{"$nulls":11},-44601]
[null,"1900-03-09",{"$nulls":11},-44601]
[null,"1900-03-10",{"$nulls":11},-44601]

{"sheet":"Issues Graph Aging","index":2,"n_rows":133,"n_cols":11,"rows_kept":133,"cut":false,"hidden":false,"merged":[[4,1,4,7],[71,1,71,7],[42,9,44,12],[113,10,115,13]]}
[null,"Issue and Decision Management"]
[null,"Dashboards"]
[]
[]
[null,"Program"]
{"$rows_empty":7}
[null,"BE CN Program Issues"]
[null,null,"Program:  How many open issues by Team?"]
[null,{"$f":"Definitions!C6","v":"Logistics"},{"$f":"COUNTIFS('Program Issues'!$D$11:$D$188,B15,'Program Issues'!$L$11:$L$188,\"Open\")","v":"1900-01-07"}]
[null,{"$f":"Definitions!C7","v":"Purchasing"},{"$f":"COUNTIFS('Program Issues'!$D$11:$D$188,B16,'Program Issues'!$L$11:$L$188,\"Open\")","v":"00:00:00"}]
[null,{"$f":"Definitions!C8","v":"Customer Service"},{"$f":"COUNTIFS('Program Issues'!$D$11:$D$188,B17,'Program Issues'!$L$11:$L$188,\"Open\")","v":"00:00:00"}]
[null,{"$f":"Definitions!C10","v":"Development"},{"$f":"COUNTIFS('Program Issues'!$D$11:$D$188,B18,'Program Issues'!$L$11:$L$188,\"Open\")","v":"00:00:00"}]
[null,{"$f":"Definitions!C11","v":"00:00:00"},{"$f":"COUNTIFS('Program Issues'!$D$11:$D$188,B19,'Program Issues'!$L$11:$L$188,\"Open\")","v":"00:00:00"}]
[null,{"$f":"Definitions!C12","v":"00:00:00"},{"$f":"COUNTIFS('Program Issues'!$D$11:$D$188,B20,'Program Issues'!$L$11:$L$188,\"Open\")","v":"00:00:00"}]
[null,null,{"$f":"SUM(C15:C20)","v":"1900-01-07"}]
[]
[]
[null,null,"Program:  How many critical open issues?"]
[null,"Critical:  Preventing progress",{"$f":"COUNTIFS('Program Issues'!$K$11:$K$188,1,'Program Issues'!$L$11:$L$188,\"Open\")","v":"00:00:00"}]
[null,"Important, timely attention required",{"$f":"COUNTIFS('Program Issues'!$K$11:$K$188,2,'Program Issues'!$L$11:$L$188,\"Open\")","v":"00:00:00"}]
[null,"Not critical/important for current progress to continue",{"$f":"COUNTIFS('Program Issues'!$K$11:$K$188,3,'Program Issues'!$L$11:$L$188,\"Open\")","v":"00:00:00"}]
[null,null,{"$f":"SUM(C25:C27)","v":"00:00:00"}]
{"$rows_empty":10}
[null,null,"This week","Last week"]
[null,"Open",{"$f":"COUNTIF('Program Issues'!$L$11:$L$188,\"Open\")","v":"1900-01-07"},"1900-01-18"]
[null,"Closed",{"$f":"COUNTIF('Program Issues'!$L$11:$L$188,\"Closed\")","v":"1900-01-17"},"1900-01-08"]
[null,null,{"$f":"SUM(C40:C41)","v":"1900-01-24"},{"$f":"SUM(D40:D41)","v":"1900-01-26"}]
[{"$nulls":9},"Note:  This graph requires manual update for \"last week\" data"]
{"$rows_empty":17}
[null,null,"Not Due Yet","Overdue"]
[null,{"$f":"Definitions!C6","v":"Logistics"},{"$f":"COUNTIFS('Program Issues'!$D$11:$D$188,B62,'Program Issues'!$L$11:$L$188,\"Open\",'Program Issues'!$O$11:$O$188,\">0\")","v":"00:00:00"},{"$f":"COUNTIFS('Program Issues'!$D$11:$D$188,B62,'Program Issues'!$L$11:$L$188,\"Open\",'Program Issues'!$O$11:$O$188,\"<0\")","v":"00:00:00"}]
[null,{"$f":"Definitions!C7","v":"Purchasing"},{"$f":"COUNTIFS('Program Issues'!$D$11:$D$188,B63,'Program Issues'!$L$11:$L$188,\"Open\",'Program Issues'!$O$11:$O$188,\">0\")","v":"00:00:00"},{"$f":"COUNTIFS('Program Issues'!$D$11:$D$188,B63,'Program Issues'!$L$11:$L$188,\"Open\",'Program Issues'!$O$11:$O$188,\"<0\")","v":"00:00:00"}]
[null,{"$f":"Definitions!C8","v":"Customer Service"},{"$f":"COUNTIFS('Program Issues'!$D$11:$D$188,B64,'Program Issues'!$L$11:$L$188,\"Open\",'Program Issues'!$O$11:$O$188,\">0\")","v":"00:00:00"},{"$f":"COUNTIFS('Program Issues'!$D$11:$D$188,B64,'Program Issues'!$L$11:$L$188,\"Open\",'Program Issues'!$O$11:$O$188,\"<0\")","v":"00:00:00"}]
[null,{"$f":"Definitions!C10","v":"Development"},{"$f":"COUNTIFS('Program Issues'!$D$11:$D$188,B65,'Program Issues'!$L$11:$L$188,\"Open\",'Program Issues'!$O$11:$O$188,\">0\")","v":"00:00:00"},{"$f":"COUNTIFS('Program Issues'!$D$11:$D$188,B65,'Program Issues'!$L$11:$L$188,\"Open\",'Program Issues'!$O$11:$O$188,\"<0\")","v":"00:00:00"}]
[null,{"$f":"Definitions!C11","v":"00:00:00"},{"$f":"COUNTIFS('Program Issues'!$D$11:$D$188,B66,'Program Issues'!$L$11:$L$188,\"Open\",'Program Issues'!$O$11:$O$188,\">0\")","v":"00:00:00"},{"$f":"COUNTIFS('Program Issues'!$D$11:$D$188,B66,'Program Issues'!$L$11:$L$188,\"Open\",'Program Issues'!$O$11:$O$188,\"<0\")","v":"00:00:00"}]
[null,{"$f":"Definitions!C12","v":"00:00:00"},{"$f":"COUNTIFS('Program Issues'!$D$11:$D$188,B67,'Program Issues'!$L$11:$L$188,\"Open\",'Program Issues'!$O$11:$O$188,\">0\")","v":"00:00:00"},{"$f":"COUNTIFS('Program Issues'!$D$11:$D$188,B67,'Program Issues'!$L$11:$L$188,\"Open\",'Program Issues'!$O$11:$O$188,\"<0\")","v":"00:00:00"}]
[]
[]
[]
[]
[null,"Process"]
[]
[]
[]
[]
[]
[null,null,"Issue =  Requirement to make a process work effectively","Gap = Potential difference with the baseline model"]
[null,{"$f":"Definitions!I6","v":"Electronic"},{"$f":"COUNTIFS('Process Gaps, Issues'!$D$9:$D$134,B79,'Process Gaps, Issues'!$E$9:$E$134,\"Issue\",'Process Gaps, Issues'!$K$9:$K$134,\"Open\")","v":"00:00:00"},{"$f":"COUNTIFS('Process Gaps, Issues'!$D$9:$D$134,B79,'Process Gaps, Issues'!$E$9:$E$134,\"Gap\",'Process Gaps, Issues'!$K$9:$K$134,\"Open\")","v":"00:00:00"}]
[null,{"$f":"Definitions!I7","v":"RTR"},{"$f":"COUNTIFS('Process Gaps, Issues'!$D$9:$D$134,B80,'Process Gaps, Issues'!$E$9:$E$134,\"Issue\",'Process Gaps, Issues'!$K$9:$K$134,\"Open\")","v":"00:00:00"},{"$f":"COUNTIFS('Process Gaps, Issues'!$D$9:$D$134,B80,'Process Gaps, Issues'!$E$9:$E$134,\"Gap\",'Process Gaps, Issues'!$K$9:$K$134,\"Open\")","v":"00:00:00"}]
[null,{"$f":"Definitions!I8","v":"OTC"},{"$f":"COUNTIFS('Process Gaps, Issues'!$D$9:$D$134,B81,'Process Gaps, Issues'!$E$9:$E$134,\"Issue\",'Process Gaps, Issues'!$K$9:$K$134,\"Open\")","v":"00:00:00"},{"$f":"COUNTIFS('Process Gaps, Issues'!$D$9:$D$134,B81,'Process Gaps, Issues'!$E$9:$E$134,\"Gap\",'Process Gaps, Issues'!$K$9:$K$134,\"Open\")","v":"00:00:00"}]
[null,{"$f":"Definitions!I10","v":"IT"},{"$f":"COUNTIFS('Process Gaps, Issues'!$D$9:$D$134,B82,'Process Gaps, Issues'!$E$9:$E$134,\"Issue\",'Process Gaps, Issues'!$K$9:$K$134,\"Open\")","v":"00:00:00"},{"$f":"COUNTIFS('Process Gaps, Issues'!$D$9:$D$134,B82,'Process Gaps, Issues'!$E$9:$E$134,\"Gap\",'Process Gaps, Issues'!$K$9:$K$134,\"Open\")","v":"00:00:00"}]
[null,"IT",{"$f":"COUNTIFS('Process Gaps, Issues'!$D$9:$D$134,B83,'Process Gaps, Issues'!$E$9:$E$134,\"Issue\",'Process Gaps, Issues'!$K$9:$K$134,\"Open\")","v":"00:00:00"},{"$f":"COUNTIFS('Process Gaps, Issues'!$D$9:$D$134,B83,'Process Gaps, Issues'!$E$9:$E$134,\"Gap\",'Process Gaps, Issues'!$K$9:$K$134,\"Open\")","v":"00:00:00"}]
[null,null,{"$f":"SUM(C79:C83)","v":"00:00:00"},{"$f":"SUM(D79:D83)","v":"00:00:00"}]
{"$rows_empty":12}
[null,null,"Process: How many open critical issues?"]
[null,"Critical:  Preventing progress",{"$f":"COUNTIFS('Process Gaps, Issues'!J9:J134,1,'Process Gaps, Issues'!K9:K134,\"Open\")","v":"00:00:00"}]
[null,"Important, timely attention required",{"$f":"COUNTIFS('Process Gaps, Issues'!J9:J134,2,'Process Gaps, Issues'!K9:K134,\"Open\")","v":"00:00:00"}]
[null,"Not critical/important for current progress to continue",{"$f":"COUNTIFS('Process Gaps, Issues'!J9:J134,3,'Process Gaps, Issues'!K9:K134,\"Open\")","v":"00:00:00"}]
[null,null,{"$f":"SUM(C98:C100)","v":"00:00:00"}]
{"$rows_empty":10}
[null,null,"This week","Last week"]
[null,"Open",{"$f":"COUNTIF('Process Gaps, Issues'!K9:K134,\"Open\")","v":"00:00:00"},"1900-01-18"]
[null,"Closed",{"$f":"COUNTIF('Process Gaps, Issues'!K9:K134,\"Closed\")","v":"00:00:00"},"1900-02-21",{"$nulls":6},"Note:  This graph requires manual update for \"last week\" data"]
[null,null,{"$f":"SUM(C113:C114)","v":"00:00:00"},{"$f":"SUM(D113:D114)","v":"1900-03-10"}]
{"$rows_empty":13}
[null,null,"Not Due Yet","Overdue"]
[null,{"$f":"Definitions!I6","v":"Electronic"},{"$f":"COUNTIFS('Process Gaps, Issues'!D9:D134,B130,'Process Gaps, Issues'!K9:K134,\"Open\",'Process Gaps, Issues'!N9:N134,\">0\")","v":"00:00:00"},{"$f":"COUNTIFS('Process Gaps, Issues'!D9:D134,B130,'Process Gaps, Issues'!K9:K134,\"Open\",'Process Gaps, Issues'!N9:N134,\"<0\")","v":"00:00:00"}]
[null,{"$f":"Definitions!I7","v":"RTR"},{"$f":"COUNTIFS('Process Gaps, Issues'!D9:D134,B131,'Process Gaps, Issues'!K9:K134,\"Open\",'Process Gaps, Issues'!N9:N134,\">0\")","v":"00:00:00"},{"$f":"COUNTIFS('Process Gaps, Issues'!D9:D134,B131,'Process Gaps, Issues'!K9:K134,\"Open\",'Process Gaps, Issues'!N9:N134,\"<0\")","v":"00:00:00"}]
[null,{"$f":"Definitions!I8","v":"OTC"},{"$f":"COUNTIFS('Process Gaps, Issues'!D9:D134,B132,'Process Gaps, Issues'!K9:K134,\"Open\",'Process Gaps, Issues'!N9:N134,\">0\")","v":"00:00:00"},{"$f":"COUNTIFS('Process Gaps, Issues'!D9:D134,B132,'Process Gaps, Issues'!K9:K134,\"Open\",'Process Gaps, Issues'!N9:N134,\"<0\")","v":"00:00:00"}]
[null,{"$f":"Definitions!I10","v":"IT"},{"$f":"COUNTIFS('Process Gaps, Issues'!D9:D134,B133,'Process Gaps, Issues'!K9:K134,\"Open\",'Process Gaps, Issues'!N9:N134,\">0\")","v":"00:00:00"},{"$f":"COUNTIFS('Process Gaps, Issues'!D9:D134,B133,'Process Gaps, Issues'!K9:K134,\"Open\",'Process Gaps, Issues'!N9:N134,\"<0\")","v":"00:00:00"}]

{"sheet":"Definitions","index":3,"n_rows":10,"n_cols":17,"rows_kept":10,"cut":false,"hidden":false,"merged":[]}
[]
[]
[]
[]
[null,null,"Team",null,"Type",null,"Status",null,"Process Team",null,null,"Days Overdue",null,"Influence Degree",null,null,"Urgency Degree"]
[null,null,"Logistics",null,"Gap",null,"Open",null,"Electronic",null,null,"<0",null,"Extensive/Widespread",null,null,"Immediate"]
[null,null,"Purchasing",null,"Issue",null,"Closed",null,"RTR",{"$nulls":4},"Significant/Large",null,null,"High"]
[null,null,"Customer Service",null,null,null,"Inprocess",null,"OTC",{"$nulls":4},"Moderate/Limited",null,null,"Medium"]
[null,null,"Finance",null,null,null,"Pending",null,"PTP",{"$nulls":4},"Minor/Localized",null,null,"Low"]
[null,null,"Development",{"$nulls":5},"IT"]